[Event "Late-Titled-Tuesday-Blitz-April-23-2024"]
[Site "Chess.com"]
[Date "2024.04.23"]
[Round "4"]
[White "lamomiajunior"]
[Black "Itay121"]
[Result "1-0"]
[WhiteElo "2743"]
[BlackElo "2548"]
[TimeControl "180+1"]
[EndTime "14:41:00 PDT"]
[Termination "lamomiajunior won by checkmate"]

1. d4 {[%clk 0:03:00.9]} 1... Nf6 {[%clk 0:02:58.4]} 2. Nc3 {[%clk 0:03:01.1]}
2... d5 {[%clk 0:02:58.4]} 3. Bf4 {[%clk 0:03:01.8]} 3... a6 {[%clk 0:02:53.4]}
4. e3 {[%clk 0:03:01.8]} 4... e6 {[%clk 0:02:49.6]} 5. g4 {[%clk 0:03:01.8]}
5... Bb4 {[%clk 0:02:49.3]} 6. Ne2 {[%clk 0:03:01.9]} 6... O-O {[%clk
0:02:41.5]} 7. a3 {[%clk 0:03:01.4]} 7... Bd6 {[%clk 0:02:40.7]} 8. g5 {[%clk
0:03:01.4]} 8... Ne4 {[%clk 0:02:35.8]} 9. Nxe4 {[%clk 0:02:59.9]} 9... dxe4
{[%clk 0:02:36.7]} 10. h4 {[%clk 0:02:59.4]} 10... Nc6 {[%clk 0:02:33.4]} 11.
Bg2 {[%clk 0:02:58.3]} 11... Bxf4 {[%clk 0:02:30.1]} 12. Nxf4 {[%clk 0:02:59.2]}
12... e5 {[%clk 0:02:17.3]} 13. dxe5 {[%clk 0:02:57.9]} 13... Nxe5 {[%clk
0:02:18.2]} 14. Qxd8 {[%clk 0:02:51.5]} 14... Rxd8 {[%clk 0:02:19.1]} 15. Bxe4
{[%clk 0:02:51.9]} 15... Bg4 {[%clk 0:02:17.9]} 16. Nd3 {[%clk 0:02:08.4]} 16...
Nf3+ {[%clk 0:02:10.7]} 17. Bxf3 {[%clk 0:02:08.2]} 17... Bxf3 {[%clk
0:02:11.6]} 18. Rg1 {[%clk 0:02:09]} 18... Rd6 {[%clk 0:02:04.1]} 19. Rg3 {[%clk
0:02:08.7]} 19... Be4 {[%clk 0:02:02.2]} 20. Ke2 {[%clk 0:02:06.6]} 20... Rad8
{[%clk 0:02:01.7]} 21. Rd1 {[%clk 0:01:54.3]} 21... a5 {[%clk 0:01:52.2]} 22. f3
{[%clk 0:01:51.9]} 22... Bd5 {[%clk 0:01:41.1]} 23. e4 {[%clk 0:01:41.3]} 23...
Bc4 {[%clk 0:01:38.7]} 24. b3 {[%clk 0:01:31.3]} 24... Ba6 {[%clk 0:01:35]} 25.
Rgg1 {[%clk 0:01:23.1]} 25... a4 {[%clk 0:01:28.5]} 26. bxa4 {[%clk 0:01:18.9]}
26... Rc6 {[%clk 0:01:23.3]} 27. Ke3 {[%clk 0:01:17.5]} 27... Rxc2 {[%clk
0:01:21.3]} 28. Nb4 {[%clk 0:01:17.9]} 28... Rc3+ {[%clk 0:01:12.9]} 29. Kf4
{[%clk 0:01:18]} 29... Rd6 {[%clk 0:00:57.8]} 30. Nd5 {[%clk 0:01:12.9]} 30...
Rxa3 {[%clk 0:00:54.5]} 31. Nxc7 {[%clk 0:01:11.2]} 31... Rdd3 {[%clk
0:00:47.2]} 32. Rxd3 {[%clk 0:01:08.7]} 32... Bxd3 {[%clk 0:00:43.1]} 33. Rd1
{[%clk 0:01:06.7]} 33... h6 {[%clk 0:00:37.8]} 34. gxh6 {[%clk 0:01:06.2]} 34...
gxh6 {[%clk 0:00:38]} 35. Ke5 {[%clk 0:00:50.6]} 35... Kg7 {[%clk 0:00:31.4]}
36. Ne8+ {[%clk 0:00:46.6]} 36... Kf8 {[%clk 0:00:31.3]} 37. Nf6 {[%clk
0:00:46.2]} 37... Ke7 {[%clk 0:00:24.3]} 38. f4 {[%clk 0:00:41.7]} 38... b5
{[%clk 0:00:19.3]} 39. axb5 {[%clk 0:00:41.1]} 39... Bxb5 {[%clk 0:00:18.3]} 40.
Rb1 {[%clk 0:00:38]} 40... Ra5 {[%clk 0:00:16.3]} 41. Nd5+ {[%clk 0:00:38.6]}
41... Kf8 {[%clk 0:00:16.2]} 42. Kf6 {[%clk 0:00:36.6]} 42... Ra6+ {[%clk
0:00:16.8]} 43. Ke5 {[%clk 0:00:37.1]} 43... Be8 {[%clk 0:00:16.6]} 44. Rb8
{[%clk 0:00:36.6]} 44... Ra5 {[%clk 0:00:15.8]} 45. f5 {[%clk 0:00:35.3]} 45...
Ra7 {[%clk 0:00:12.2]} 46. Kf4 {[%clk 0:00:35.5]} 46... Kg7 {[%clk 0:00:05.6]}
47. Rxe8 {[%clk 0:00:34.6]} 47... Ra1 {[%clk 0:00:06.1]} 48. f6+ {[%clk
0:00:31.3]} 48... Kh7 {[%clk 0:00:06.6]} 49. Rf8 {[%clk 0:00:31.1]} 49... Kg6
{[%clk 0:00:06.3]} 50. Rg8+ {[%clk 0:00:31.3]} 50... Kh5 {[%clk 0:00:05.8]} 51.
Ke5 {[%clk 0:00:30.1]} 51... Ra6 {[%clk 0:00:05.3]} 52. Rg7 {[%clk 0:00:29.1]}
52... Re6+ {[%clk 0:00:05.6]} 53. Kf5 {[%clk 0:00:29.4]} 53... Re5+ {[%clk
0:00:01.1]} 54. Kxe5 {[%clk 0:00:29.1]} 54... Kxh4 {[%clk 0:00:02]} 55. Rxf7
{[%clk 0:00:29.4]} 55... Kh5 {[%clk 0:00:02.9]} 56. Rg7 {[%clk 0:00:29.5]} 56...
Kh4 {[%clk 0:00:03.8]} 57. f7 {[%clk 0:00:29.5]} 57... Kh5 {[%clk 0:00:04.7]}
58. f8=Q {[%clk 0:00:29.5]} 58... Kh4 {[%clk 0:00:05.5]} 59. Qf4+ {[%clk
0:00:29.7]} 59... Kh5 {[%clk 0:00:06.4]} 60. Qg4# {[%clk 0:00:30.1]} 1-0

[Event "Late-Titled-Tuesday-Blitz-April-23-2024"]
[Site "Chess.com"]
[Date "2024.04.23"]
[Round "4"]
[White "aranibos"]
[Black "giomar27"]
[Result "0-1"]
[WhiteElo "2257"]
[BlackElo "2495"]
[TimeControl "180+1"]
[EndTime "14:41:02 PDT"]
[Termination "giomar27 won by resignation"]

1. d4 {[%clk 0:03:00.9]} 1... c5 {[%clk 0:02:59.6]} 2. d5 {[%clk 0:03:00.1]}
2... e5 {[%clk 0:02:59.9]} 3. Nc3 {[%clk 0:02:55.4]} 3... d6 {[%clk 0:03:00.4]}
4. g3 {[%clk 0:02:55.8]} 4... f5 {[%clk 0:03:00.4]} 5. Bg2 {[%clk 0:02:56.1]}
5... Nf6 {[%clk 0:02:59.4]} 6. Nh3 {[%clk 0:02:51.3]} 6... Be7 {[%clk
0:02:55.1]} 7. f4 {[%clk 0:02:51.2]} 7... e4 {[%clk 0:02:53.7]} 8. Nf2 {[%clk
0:02:44.3]} 8... O-O {[%clk 0:02:53.5]} 9. a4 {[%clk 0:02:43.1]} 9... Na6 {[%clk
0:02:52.6]} 10. O-O {[%clk 0:02:43.1]} 10... Nb4 {[%clk 0:02:51.5]} 11. Be3
{[%clk 0:02:39]} 11... b6 {[%clk 0:02:51.7]} 12. Qd2 {[%clk 0:02:32.5]} 12...
Bb7 {[%clk 0:02:51.8]} 13. Rfd1 {[%clk 0:02:21.4]} 13... Nbxd5 {[%clk
0:02:51.3]} 14. Nxd5 {[%clk 0:02:19.2]} 14... Nxd5 {[%clk 0:02:50.8]} 15. g4
{[%clk 0:02:07.8]} 15... Nxe3 {[%clk 0:02:46.5]} 16. Qxe3 {[%clk 0:02:06.9]}
16... d5 {[%clk 0:02:47.1]} 17. c3 {[%clk 0:02:00.9]} 17... Qc7 {[%clk
0:02:46.1]} 18. gxf5 {[%clk 0:01:49.9]} 18... Rxf5 {[%clk 0:02:41.5]} 19. Bh3
{[%clk 0:01:50.3]} 19... Rf6 {[%clk 0:02:22.8]} 20. f5 {[%clk 0:01:44.2]} 20...
Bd6 {[%clk 0:02:20.9]} 21. Ng4 {[%clk 0:01:42.3]} 21... Rf7 {[%clk 0:02:14.8]}
22. Rf1 {[%clk 0:01:40.8]} 22... Raf8 {[%clk 0:02:14.2]} 23. Rad1 {[%clk
0:01:38.3]} 23... Kh8 {[%clk 0:02:13.8]} 24. Kh1 {[%clk 0:01:38.3]} 24... Rxf5
{[%clk 0:02:10.8]} 25. Rxf5 {[%clk 0:01:31]} 25... Rxf5 {[%clk 0:02:11.7]} 26.
Qg1 {[%clk 0:01:16.6]} 26... d4 {[%clk 0:02:08.5]} 27. cxd4 {[%clk 0:01:14.4]}
27... cxd4 {[%clk 0:02:07.5]} 28. Qxd4 {[%clk 0:01:10.5]} 28... Rd5 {[%clk
0:02:01.5]} 29. Qg1 {[%clk 0:01:03.6]} 29... Bc5 {[%clk 0:02:00.6]} 30. e3
{[%clk 0:01:01.7]} 30... Rxd1 {[%clk 0:01:55]} 31. Qxd1 {[%clk 0:01:01.7]} 31...
Qd6 {[%clk 0:01:53.6]} 32. Qf1 {[%clk 0:01:00.7]} 32... h5 {[%clk 0:01:47.7]}
33. Nf2 {[%clk 0:00:53.6]} 33... Bxe3 {[%clk 0:01:46.5]} 34. Qe2 {[%clk
0:00:53.1]} 34... Qh6 {[%clk 0:00:43.8]} 35. Bg2 {[%clk 0:00:44.1]} 35... Bxf2
{[%clk 0:00:35.9]} 36. Qxf2 {[%clk 0:00:43.5]} 36... Qc1+ {[%clk 0:00:35.8]} 37.
Qf1 {[%clk 0:00:34.9]} 37... Qxf1+ {[%clk 0:00:35.8]} 38. Bxf1 {[%clk
0:00:34.6]} 38... a5 {[%clk 0:00:34.1]} 39. Be2 {[%clk 0:00:29]} 39... g6 {[%clk
0:00:32.2]} 40. h4 {[%clk 0:00:29.5]} 40... Kg7 {[%clk 0:00:32.7]} 41. Kg1
{[%clk 0:00:29.6]} 41... Kf6 {[%clk 0:00:33.3]} 42. Kf2 {[%clk 0:00:29.7]} 42...
Ke5 {[%clk 0:00:34]} 43. Ke3 {[%clk 0:00:30]} 43... Bc6 {[%clk 0:00:34.6]} 44.
b3 {[%clk 0:00:30.4]} 44... Bd5 {[%clk 0:00:34.6]} 45. Bd1 {[%clk 0:00:27.9]}
45... Be6 {[%clk 0:00:34.7]} 46. Bc2 {[%clk 0:00:26.7]} 46... Bf5 {[%clk
0:00:34.1]} 47. Bd1 {[%clk 0:00:27.4]} 47... Kd5 {[%clk 0:00:31]} 48. Be2 {[%clk
0:00:26.7]} 48... Kc5 {[%clk 0:00:31]} 49. Bc4 {[%clk 0:00:25.9]} 49... Kb4
{[%clk 0:00:29.6]} 50. Bf7 {[%clk 0:00:25.6]} 50... Kc3 {[%clk 0:00:29.9]} 51.
Be8 {[%clk 0:00:25.3]} 51... Be6 {[%clk 0:00:29.2]} 52. Bxg6 {[%clk 0:00:24.2]}
52... Bxb3 {[%clk 0:00:28.5]} 53. Bxh5 {[%clk 0:00:24.7]} 53... Bxa4 {[%clk
0:00:28.1]} 54. Bg6 {[%clk 0:00:25.3]} 54... Bd1 {[%clk 0:00:24.9]} 55. h5
{[%clk 0:00:17.6]} 55... Bxh5 {[%clk 0:00:24.7]} 56. Bxh5 {[%clk 0:00:17.5]}
56... a4 {[%clk 0:00:24.9]} 57. Kxe4 {[%clk 0:00:15.5]} 57... a3 {[%clk
0:00:24.7]} 58. Bf7 {[%clk 0:00:16.1]} 58... b5 {[%clk 0:00:25]} 59. Ke3 {[%clk
0:00:14.5]} 59... b4 {[%clk 0:00:25.5]} 60. Ke2 {[%clk 0:00:14.7]} 60... b3
{[%clk 0:00:26.1]} 61. Kd1 {[%clk 0:00:15]} 61... a2 {[%clk 0:00:23.8]} 0-1

[Event "Late-Titled-Tuesday-Blitz-April-23-2024"]
[Site "Chess.com"]
[Date "2024.04.23"]
[Round "4"]
[White "Mops_2004"]
[Black "VD_coach"]
[Result "1-0"]
[WhiteElo "2864"]
[BlackElo "2602"]
[TimeControl "180+1"]
[EndTime "14:41:03 PDT"]
[Termination "Mops_2004 won on time"]

1. g3 {[%clk 0:03:00.9]} 1... Nf6 {[%clk 0:02:23.3]} 2. Bg2 {[%clk 0:03:00.6]}
2... g6 {[%clk 0:02:21.3]} 3. d4 {[%clk 0:03:00.2]} 3... Bg7 {[%clk 0:02:21.7]}
4. e4 {[%clk 0:03:00.6]} 4... O-O {[%clk 0:02:22.4]} 5. Nc3 {[%clk 0:03:01.1]}
5... d6 {[%clk 0:02:22.8]} 6. Nf3 {[%clk 0:03:01.7]} 6... Nc6 {[%clk 0:02:22.4]}
7. d5 {[%clk 0:03:01.4]} 7... Nb8 {[%clk 0:02:21.3]} 8. h3 {[%clk 0:02:59.6]}
8... c6 {[%clk 0:02:21.4]} 9. a4 {[%clk 0:02:58.5]} 9... Nbd7 {[%clk 0:02:12.6]}
10. O-O {[%clk 0:02:58.1]} 10... Nc5 {[%clk 0:02:12.8]} 11. Re1 {[%clk 0:02:58]}
11... e5 {[%clk 0:01:48.3]} 12. dxe6 {[%clk 0:02:48.4]} 12... Bxe6 {[%clk
0:01:46.8]} 13. Nd4 {[%clk 0:02:32.5]} 13... Re8 {[%clk 0:01:43.8]} 14. Bg5
{[%clk 0:02:23.5]} 14... h6 {[%clk 0:01:38.7]} 15. Bf4 {[%clk 0:02:23.6]} 15...
Nh5 {[%clk 0:01:34.5]} 16. Be3 {[%clk 0:02:20.4]} 16... Qd7 {[%clk 0:01:22.6]}
17. Kh2 {[%clk 0:02:20.2]} 17... Rad8 {[%clk 0:01:21.6]} 18. a5 {[%clk
0:02:19.1]} 18... Bc4 {[%clk 0:01:16.2]} 19. f4 {[%clk 0:02:12.7]} 19... Nf6
{[%clk 0:00:59.5]} 20. Bf2 {[%clk 0:02:11.5]} 20... d5 {[%clk 0:00:56.5]} 21. b3
{[%clk 0:02:01.5]} 21... Nfxe4 {[%clk 0:00:50.1]} 22. Nxe4 {[%clk 0:01:46.7]}
22... Nxe4 {[%clk 0:00:50]} 23. Bg1 {[%clk 0:01:37.8]} 23... Ba6 {[%clk
0:00:46.9]} 24. b4 {[%clk 0:01:32.8]} 24... Nc3 {[%clk 0:00:39.4]} 25. Qd2
{[%clk 0:01:24.9]} 25... Nb5 {[%clk 0:00:38.7]} 26. c3 {[%clk 0:01:18.2]} 26...
Nxd4 {[%clk 0:00:37.5]} 27. Bxd4 {[%clk 0:01:19]} 27... Bxd4 {[%clk 0:00:36.2]}
28. Qxd4 {[%clk 0:01:19.7]} 28... h5 {[%clk 0:00:29.7]} 29. Qxa7 {[%clk
0:01:17.2]} 29... Qf5 {[%clk 0:00:26.8]} 30. Qf2 {[%clk 0:01:00.4]} 30... Qd3
{[%clk 0:00:21.6]} 31. Rac1 {[%clk 0:01:00]} 31... Rxe1 {[%clk 0:00:20.1]} 32.
Qxe1 {[%clk 0:01:00.3]} 32... Kf8 {[%clk 0:00:19.6]} 33. Rd1 {[%clk 0:00:53.5]}
33... Qc2 {[%clk 0:00:16.5]} 34. Rc1 {[%clk 0:00:46.5]} 34... Qd3 {[%clk
0:00:16.2]} 35. Qe5 {[%clk 0:00:43.3]} 35... Kg8 {[%clk 0:00:11.7]} 36. Re1
{[%clk 0:00:40.3]} 36... d4 {[%clk 0:00:10.5]} 37. c4 {[%clk 0:00:25.8]} 37...
Qxc4 {[%clk 0:00:08.8]} 38. Qe7 {[%clk 0:00:26.2]} 38... Rf8 {[%clk 0:00:08.9]}
39. f5 {[%clk 0:00:26.7]} 39... Qd3 {[%clk 0:00:04.3]} 40. fxg6 {[%clk
0:00:23.7]} 40... Qxg6 {[%clk 0:00:05.2]} 41. Re5 {[%clk 0:00:23.1]} 41... f6
{[%clk 0:00:04.6]} 42. Re6 {[%clk 0:00:17.5]} 42... d3 {[%clk 0:00:05.1]} 43.
Rd6 {[%clk 0:00:17.3]} 43... Qf7 {[%clk 0:00:05.4]} 44. Qe3 {[%clk 0:00:14.4]}
44... Re8 {[%clk 0:00:05.8]} 45. Qf4 {[%clk 0:00:13.6]} 45... Kg7 {[%clk
0:00:05.4]} 46. h4 {[%clk 0:00:12.9]} 46... Re2 {[%clk 0:00:05.5]} 47. Qf5
{[%clk 0:00:11.3]} 47... d2 {[%clk 0:00:05.4]} 48. Rd7 {[%clk 0:00:10.9]} 48...
Re7 {[%clk 0:00:03.3]} 49. Rxd2 {[%clk 0:00:11.4]} 49... Re5 {[%clk 0:00:02.9]}
50. Qf4 {[%clk 0:00:11.8]} 50... Qe7 {[%clk 0:00:01.1]} 51. Bf3 {[%clk
0:00:11.2]} 1-0

[Event "Late-Titled-Tuesday-Blitz-April-23-2024"]
[Site "Chess.com"]
[Date "2024.04.23"]
[Round "4"]
[White "maurovargas01"]
[Black "PawnEatingZombie"]
[Result "0-1"]
[WhiteElo "1908"]
[BlackElo "2237"]
[TimeControl "180+1"]
[EndTime "14:41:04 PDT"]
[Termination "PawnEatingZombie won on time"]

1. e4 {[%clk 0:03:00.6]} 1... c5 {[%clk 0:02:59.3]} 2. Nc3 {[%clk 0:03:00.7]}
2... Nc6 {[%clk 0:02:59.5]} 3. f4 {[%clk 0:03:01.6]} 3... g6 {[%clk 0:02:59.2]}
4. Nf3 {[%clk 0:03:02.5]} 4... Bg7 {[%clk 0:02:58.7]} 5. Bc4 {[%clk 0:03:02]}
5... e6 {[%clk 0:02:58.4]} 6. d3 {[%clk 0:03:01.9]} 6... Nge7 {[%clk 0:02:58.5]}
7. a4 {[%clk 0:03:01.2]} 7... d5 {[%clk 0:02:55]} 8. Bb3 {[%clk 0:02:56.4]} 8...
O-O {[%clk 0:02:54.7]} 9. O-O {[%clk 0:02:55.7]} 9... Nd4 {[%clk 0:02:52.8]} 10.
Ba2 {[%clk 0:02:42.9]} 10... b6 {[%clk 0:02:43.4]} 11. Rf2 {[%clk 0:02:28.3]}
11... Bb7 {[%clk 0:02:42.8]} 12. e5 {[%clk 0:02:25.1]} 12... Nxf3+ {[%clk
0:02:33.9]} 13. Rxf3 {[%clk 0:02:24.5]} 13... h5 {[%clk 0:02:28.1]} 14. Rh3
{[%clk 0:02:23.2]} 14... Nf5 {[%clk 0:02:23.6]} 15. g4 {[%clk 0:02:16.5]} 15...
hxg4 {[%clk 0:02:23.3]} 16. Qxg4 {[%clk 0:02:16.2]} 16... Re8 {[%clk 0:01:11.6]}
17. Bd2 {[%clk 0:02:13.9]} 17... Kf8 {[%clk 0:01:11.3]} 18. Rf1 {[%clk
0:02:02.1]} 18... Ke7 {[%clk 0:01:11.1]} 19. Nb5 {[%clk 0:01:56.3]} 19... Rh8
{[%clk 0:01:06.6]} 20. Be1 {[%clk 0:01:51.3]} 20... Kd7 {[%clk 0:01:05.9]} 21.
c3 {[%clk 0:01:38]} 21... Rxh3 {[%clk 0:01:04.4]} 22. Qxh3 {[%clk 0:01:36.1]}
22... Qh8 {[%clk 0:01:04.6]} 23. Qg4 {[%clk 0:01:26.3]} 23... a6 {[%clk
0:01:01.7]} 24. Nd6 {[%clk 0:01:16.3]} 24... Nxd6 {[%clk 0:00:57.4]} 25. exd6
{[%clk 0:01:15.2]} 25... d4 {[%clk 0:00:47]} 26. Bh4 {[%clk 0:00:47.2]} 26...
Bf6 {[%clk 0:00:40.1]} 27. Bg3 {[%clk 0:00:43.7]} 27... Rg8 {[%clk 0:00:31.2]}
28. Re1 {[%clk 0:00:43.2]} 28... Qh5 {[%clk 0:00:28.3]} 29. Bxe6+ {[%clk
0:00:40.9]} 29... Kd8 {[%clk 0:00:26.1]} 30. Qxh5 {[%clk 0:00:29.3]} 30... gxh5
{[%clk 0:00:25.7]} 31. Bxf7 {[%clk 0:00:29.4]} 31... Rg7 {[%clk 0:00:22.1]} 32.
Bxh5 {[%clk 0:00:17.3]} 32... dxc3 {[%clk 0:00:19.2]} 33. bxc3 {[%clk
0:00:16.7]} 33... Bxc3 {[%clk 0:00:19.3]} 34. Kf2 {[%clk 0:00:10.8]} 34... Bd4+
{[%clk 0:00:17.5]} 35. Ke2 {[%clk 0:00:10.8]} 35... b5 {[%clk 0:00:15.4]} 36.
Bh4+ {[%clk 0:00:08.9]} 36... Kd7 {[%clk 0:00:15.7]} 37. Kd2 {[%clk 0:00:07.8]}
37... Kxd6 {[%clk 0:00:15.7]} 38. f5 {[%clk 0:00:05.9]} 38... Rg2+ {[%clk
0:00:13.6]} 39. Kc1 {[%clk 0:00:05]} 39... bxa4 {[%clk 0:00:11.2]} 40. Bg3+
{[%clk 0:00:04.2]} 40... Kd7 {[%clk 0:00:08.7]} 41. Be8+ {[%clk 0:00:03.7]}
41... Kd8 {[%clk 0:00:08]} 42. Bg6 {[%clk 0:00:03]} 42... a3 {[%clk 0:00:06.7]}
0-1

[Event "Late-Titled-Tuesday-Blitz-April-23-2024"]
[Site "Chess.com"]
[Date "2024.04.23"]
[Round "4"]
[White "PavelShkapenko"]
[Black "PedroGil25"]
[Result "1/2-1/2"]
[WhiteElo "2754"]
[BlackElo "2499"]
[TimeControl "180+1"]
[EndTime "14:41:08 PDT"]
[Termination "Game drawn - insufficient material"]

1. e4 {[%clk 0:03:00.9]} 1... c5 {[%clk 0:02:59.9]} 2. Nc3 {[%clk 0:03:00.2]}
2... e6 {[%clk 0:02:55.2]} 3. g3 {[%clk 0:02:59.5]} 3... d5 {[%clk 0:02:53.4]}
4. exd5 {[%clk 0:03:00.4]} 4... exd5 {[%clk 0:02:53.9]} 5. d4 {[%clk 0:03:01]}
5... Nf6 {[%clk 0:02:52.4]} 6. Bg5 {[%clk 0:02:53]} 6... Be7 {[%clk 0:02:49]} 7.
Bg2 {[%clk 0:02:19.2]} 7... O-O {[%clk 0:02:46.5]} 8. Nge2 {[%clk 0:02:19]} 8...
Nc6 {[%clk 0:02:41.6]} 9. O-O {[%clk 0:02:17]} 9... cxd4 {[%clk 0:02:39.5]} 10.
Nxd4 {[%clk 0:02:16.7]} 10... h6 {[%clk 0:02:39.2]} 11. Bxf6 {[%clk 0:01:44.2]}
11... Bxf6 {[%clk 0:02:40.1]} 12. Nde2 {[%clk 0:01:44.6]} 12... d4 {[%clk
0:01:52.9]} 13. Nd5 {[%clk 0:01:42.7]} 13... Re8 {[%clk 0:01:50.9]} 14. Nxf6+
{[%clk 0:01:12]} 14... Qxf6 {[%clk 0:01:51.8]} 15. Nf4 {[%clk 0:01:12.5]} 15...
Bf5 {[%clk 0:01:45.4]} 16. Qd2 {[%clk 0:01:10.7]} 16... Rad8 {[%clk 0:01:44.1]}
17. Rfe1 {[%clk 0:01:10.6]} 17... b6 {[%clk 0:01:30.3]} 18. a3 {[%clk 0:01:02]}
18... Ne5 {[%clk 0:01:29.4]} 19. Nd3 {[%clk 0:00:51.6]} 19... Nxd3 {[%clk
0:01:17.9]} 20. cxd3 {[%clk 0:00:51.3]} 20... Qd6 {[%clk 0:01:15.1]} 21. Rac1
{[%clk 0:00:50.1]} 21... Rc8 {[%clk 0:01:09.5]} 22. h4 {[%clk 0:00:48.7]} 22...
Rxe1+ {[%clk 0:00:57.2]} 23. Rxe1 {[%clk 0:00:47.2]} 23... a5 {[%clk 0:00:55.7]}
24. Be4 {[%clk 0:00:42.9]} 24... Be6 {[%clk 0:00:50]} 25. Qe2 {[%clk 0:00:38.9]}
25... b5 {[%clk 0:00:43.5]} 26. Qh5 {[%clk 0:00:37.9]} 26... Qc5 {[%clk
0:00:40.5]} 27. Qf3 {[%clk 0:00:30.5]} 27... b4 {[%clk 0:00:40.1]} 28. axb4
{[%clk 0:00:30.1]} 28... Qxb4 {[%clk 0:00:41]} 29. Re2 {[%clk 0:00:27.9]} 29...
Qb5 {[%clk 0:00:37]} 30. Qf4 {[%clk 0:00:19.6]} 30... Qc5 {[%clk 0:00:34]} 31.
Kg2 {[%clk 0:00:18.9]} 31... Qc7 {[%clk 0:00:33.4]} 32. Qxc7 {[%clk 0:00:18.5]}
32... Rxc7 {[%clk 0:00:34.3]} 33. Kf3 {[%clk 0:00:18.3]} 33... g5 {[%clk
0:00:30.1]} 34. hxg5 {[%clk 0:00:18.3]} 34... hxg5 {[%clk 0:00:31]} 35. Re1
{[%clk 0:00:18]} 35... Kg7 {[%clk 0:00:31]} 36. Rh1 {[%clk 0:00:17.1]} 36... Rc2
{[%clk 0:00:30.7]} 37. Rh7+ {[%clk 0:00:16.4]} 37... Kf6 {[%clk 0:00:30.2]} 38.
Rh6+ {[%clk 0:00:16.5]} 38... Ke7 {[%clk 0:00:30.4]} 39. Rh5 {[%clk 0:00:16.5]}
39... Rxb2 {[%clk 0:00:27.6]} 40. Rxg5 {[%clk 0:00:16.4]} 40... a4 {[%clk
0:00:28.1]} 41. Ra5 {[%clk 0:00:16.3]} 41... Bb3 {[%clk 0:00:28.6]} 42. Bd5
{[%clk 0:00:16.1]} 42... Bxd5+ {[%clk 0:00:24.5]} 43. Rxd5 {[%clk 0:00:15.9]}
43... a3 {[%clk 0:00:25.1]} 44. Ra5 {[%clk 0:00:16.5]} 44... a2 {[%clk
0:00:25.4]} 45. Ke4 {[%clk 0:00:16.8]} 45... Rxf2 {[%clk 0:00:25.1]} 46. Kxd4
{[%clk 0:00:17.4]} 46... Kf6 {[%clk 0:00:25.1]} 47. Kc5 {[%clk 0:00:10.8]} 47...
Rc2+ {[%clk 0:00:24.4]} 48. Kd5 {[%clk 0:00:10.2]} 48... Kg5 {[%clk 0:00:22.9]}
49. d4 {[%clk 0:00:08.9]} 49... Kg4 {[%clk 0:00:23.2]} 50. Ke5 {[%clk
0:00:09.3]} 50... Kxg3 {[%clk 0:00:23]} 51. d5 {[%clk 0:00:09.8]} 51... Rd2
{[%clk 0:00:21.8]} 52. Kf6 {[%clk 0:00:09.4]} 52... Kf4 {[%clk 0:00:19.9]} 53.
Kxf7 {[%clk 0:00:09.2]} 53... Ke5 {[%clk 0:00:20.3]} 54. Ke7 {[%clk 0:00:08]}
54... Rxd5 {[%clk 0:00:16]} 55. Rxa2 {[%clk 0:00:08.1]} 55... Rb5 {[%clk
0:00:15.9]} 56. Re2+ {[%clk 0:00:08.2]} 56... Kd4 {[%clk 0:00:15.5]} 57. Rd2+
{[%clk 0:00:08.4]} 57... Ke3 {[%clk 0:00:15.5]} 58. Rd6 {[%clk 0:00:08.6]} 58...
Re5+ {[%clk 0:00:15.6]} 59. Re6 {[%clk 0:00:09]} 59... Rxe6+ {[%clk 0:00:16.2]}
60. Kxe6 {[%clk 0:00:09.6]} 1/2-1/2